Cogmind - Beta 16 @@@ ROGUE MODE // 2025.11.18 @ 19:58:53 Player: Plexion Result: Destroyed by N1-IVF(j) with Overtuned Pulse Rifle Performance ------------- Evolutions (2) 1000 Regions Visited (8) 1600 Robots Destroyed (142) 710 Value Destroyed (4355) 4355 Prototype IDs (5) 100 Alien Tech Used (0) 0 Bonus (533) 533 TOTAL SCORE: 8298 Bonus ------- Follower Combat Kills 14 Registered with UFD 300 Met Optimus in HQ 500 Friendly Fire -281 Cogmind --------- Core Integrity 0/550 Matter 225/300 Energy 97/100 System Corruption 2% Temperature Cool (79) Movement Treading (240) Ox5 Location -8/Scraptown Parts ------- > --- POWER (1) -------- (None) > --- PROPULSION (4) --- Overtuned Treads > --- UTILITY (4) ------ Makeshift Microdissipator Network Huge Storage Unit Makeshift Light Armor Plating Makeshift Light Armor Plating > --- WEAPON (2) ------- Helical Railgun Mini Grenade Launcher > --- INVENTORY (25) --- Graviton Reactor Graviton Reactor Assembled Alloy Leg Experimental Sensor Array Seismic Detector Expert System Advanced Weapon Cycler Makeshift Light Armor Plating Makeshift Light Armor Plating Graphene Brace Hacking Suite Hacking Suite Makeshift Hacking Suite A0-MCA's Component Scanner Ion Cannon Phase Cannon Bolt Gun Mini Grenade Launcher LU-1G1's Laser Shovel CPS Tube (2) CPS Tube (1) PL-3XN's Ring of Power Peak State ------------ > --- POWER ------------ Reinforced Deuterium Engine > --- PROPULSION ------- Light Treads Light Treads Armored Treads Medium Treads > --- UTILITY ---------- Makeshift Microdissipator Network Huge Storage Unit Makeshift Light Armor Plating Makeshift Light Armor Plating > --- WEAPON ----------- Autogun Helical Railgun > --- INVENTORY -------- Graviton Reactor Graviton Reactor Assembled Alloy Leg Wheel Experimental Sensor Array Seismic Detector Expert System Advanced Weapon Cycler Graphene Brace Hacking Suite Hacking Suite Makeshift Hacking Suite A0-MCA's Component Scanner Ion Cannon Phase Cannon Mini Grenade Launcher Mini Grenade Launcher LU-1G1's Laser Shovel CPS Tube CPS Tube PL-3XN's Ring of Power [Rating: 48] Favorites ----------- Power Reinforced Deuterium Engine Engine Reinforced Deuterium Engine Propulsion Light Treads Treads Light Treads Wheel Compact Wheel Utility Light Armor Plating Device Seismic Detector Storage Huge Storage Unit Processor Core Analyzer Protection Light Armor Plating Weapon Autogun Energy Gun EM Pulse Gun Energy Cannon Ion Cannon Ballistic Gun Autogun Launcher Mini Grenade Launcher Special Weapon CPS Tube Impact Weapon Heavy Hammer Build | -11 -10 -10 -9 -9 -8 -8 -8 -8 ------- Run | Yrd Mat Min Mat Min Mat Sto Rec Scr Slots Evolved 4 | . . . 2 . 2 . . . Power . | . . . . . . . . . Propulsion 2 | . . . 1 . 1 . . . Utility 2 | . . . 1 . 1 . . . Weapon . | . . . . . . . . . Parts Attached 87 | 7 6 1 32 2 14 4 1 20 Power 8 | 1 . . 5 1 1 . . . Engine 8 | 1 . . 5 1 1 . . . Core . | . . . . . . . . . Reactor . | . . . . . . . . . Propulsion 26 | 2 1 . 10 . 4 3 1 5 Treads 24 | 2 1 . 10 . 4 3 1 3 Leg . | . . . . . . . . . Wheel 2 | . . . . . . . . 2 Hover . | . . . . . . . . . Flight . | . . . . . . . . . Utility 26 | 2 2 . 8 . 5 1 . 8 Device 7 | 1 1 . 1 . 2 . . 2 Storage 3 | 1 1 . 1 . . . . . Processor 2 | . . . . . 1 . . 1 Hackware . | . . . . . . . . . Protection 14 | . . . 6 . 2 1 . 5 Artifact . | . . . . . . . . . Weapon 27 | 2 3 1 9 1 4 . . 7 Energy Gun 2 | 2 . . . . . . . . Energy Cannon 8 | . . . 6 . . . . 2 Ballistic Gun 9 | . 2 . 1 . 3 . . 3 Ballistic Cannon . | . . . . . . . . . Launcher 4 | . 1 . 1 1 1 . . . Special Weapon 3 | . . 1 . . . . . 2 Impact Weapon 1 | . . . 1 . . . . . Slashing Weapon . | . . . . . . . . . Piercing Weapon . | . . . . . . . . . Special Melee Weapon . | . . . . . . . . . Unidentified Prototypes 5 | . . . 1 . 1 . . 3 Parts Lost 27 | . . . 6 1 4 . . 16 Power 3 | . . . 1 1 . . . 1 Propulsion 8 | . . . 1 . . . . 7 Utility 13 | . . . 3 . 4 . . 6 Weapon 3 | . . . 1 . . . . 2 Highest Loss Streak 4 | . . . 3 1 2 . . 4 To Critical Strikes . | . . . . . . . . . Average Backups 21 | 3 8 13 16 25 24 24 25 24 Power . | . 1 1 . . 1 1 1 1 Propulsion 4 | 1 2 3 4 7 6 4 4 3 Utility 9 | . 2 5 6 9 9 12 13 12 Weapon 6 | . 2 4 6 8 7 6 7 6 Tool/Special . | . . . . . . . . . Unused Backups 29 | . 1 . 2 . 2 2 . 22 Power 5 | . . . . . . 1 . 4 Propulsion 3 | . . . 1 . . 1 . 1 Utility 16 | . . . . . 1 . . 15 Weapon 4 | . 1 . 1 . 1 . . 1 Tool/Special 1 | . . . . . . . . 1 Average Slot Usage (%) 99 | . 99 100 99 97 98 100 100 99 Engine 9 | . 14 14 10 8 9 9 9 8 Treads 33 | . 28 28 32 33 36 36 36 33 Wheel 1 | . . . . . . . . 2 Device 7 | . 13 14 11 20 9 5 . . Storage 10 | . 14 14 11 11 9 9 9 9 Processor 4 | . . . . . 3 9 9 7 Protection 11 | . . . 10 1 12 12 18 18 Energy Cannon 4 | . . . 9 16 10 . . . Ballistic Gun 13 | . 22 27 10 . 7 17 18 16 Peak Build Rating 48 | 7 8 9 20 20 29 30 31 48 Average Rating 24 | 5 7 8 15 19 24 29 30 33 On Entrance 17 | . 7 8 9 20 20 29 30 31 Avg Prop Armor Cover (%) 17 | . . . . . . . . 17 Naked Turns . | . . . . . . . . . Heaviest Build 116 | 13 28 28 105 105 107 107 107 116 Greatest Support 91 | 40 40 40 60 60 80 80 83 91 Greatest Overweight (x) 11 | . . . 1 1 1 1 1 11 Average Overweight (x) 1 | . . . . 1 1 1 1 2 Largest Inventory Capacity 25 | 8 15 15 25 25 25 25 25 25 Average Capacity 22 | 7 11 15 18 25 25 25 25 25 Most Carried 25 | 4 12 15 25 25 25 25 25 25 Average Carried 21 | 3 8 13 16 24 24 24 25 24 Final Capacity 25 | 8 15 15 25 25 25 25 25 25 Final Carried 25 | 4 12 15 25 25 25 25 25 22 Class Distribution -------------------- 82% | Scavenger-Mutant 17% | Mutant Dominant Class ---------------- Mutant | -10/Materials Mutant | -10/Mines Scavenger-Mutant | -9/Materials Scavenger-Mutant | -9/Mines Scavenger-Mutant | -8/Materials Scavenger-Mutant | -8/Storage Scavenger-Mutant | -8/Recycling Scavenger-Mutant | -8/Scraptown Resources | -11 -10 -10 -9 -9 -8 -8 -8 -8 ----------- Run | Yrd Mat Min Mat Min Mat Sto Rec Scr Matter Collected 4104 | 259 276 64 1141 319 320 435 . 1290 Remotely . | . . . . . . . . . Salvage Created 5937 | 166 245 36 1739 184 592 660 . 2315 Parts 339 | 10 17 6 107 8 45 32 . 114 Haulers Intercepted 8 | . 1 . 5 . 1 1 . . Recyclers Shooed 6 | . 1 . 4 . . 1 . . Parts Field Recycled . | . . . . . . . . . Retrieved Matter . | . . . . . . . . . Parts Self-Destructed . | . . . . . . . . . Prevented . | . . . . . . . . . Parts Restored . | . . . . . . . . . Kills | -11 -10 -10 -9 -9 -8 -8 -8 -8 ------- Run | Yrd Mat Min Mat Min Mat Sto Rec Scr Combat Hostiles Destroyed 116 | . 8 4 30 10 12 11 . 41 Melee 1 | . . . 1 . . . . . Guns 59 | . 3 1 21 . 2 11 . 21 Cannons 16 | . . . 7 2 7 . . . AOE 40 | . 5 3 1 8 3 . . 20 Classes Destroyed 20 | 2 4 . 6 1 1 . . 6 Builder 5 | . 2 . 1 2 . . . . Tunneler 6 | 4 . . 1 . 1 . . . Hauler 8 | . 1 . 5 . 1 1 . . Recycler 8 | 1 . . 3 1 2 1 . . Mechanic 1 | . . . 1 . . . . . Operator 3 | . . . 2 . 1 . . . Watcher 2 | . . . 1 . . 1 . . Swarmer 18 | . 3 4 3 . 6 2 . . Grunt 29 | . 5 . 16 2 3 3 . . Brawler 1 | . . . 1 . . . . . Duelist 1 | . . . 1 . . . . . Sentry 17 | . . . 9 . 2 6 . . Heavy 1 | . . . . . 1 . . . Federalist 5 | . . . . . . . . 5 Explorer 1 | . . . . . . . . 1 Ranger 4 | . . . . . . . . 4 Guru 3 | . . . . . . . . 3 Scrapper 26 | . . . . . . . . 26 Assembled 8 | . . . . 8 . . . . Thug 2 | . . . . 1 . . . 1 Mutant 1 | . . . . . . . . 1 Best Kill Streak 10 | 2 8 3 4 6 3 5 . 10 Combat Bots Only 10 | . 6 3 4 6 3 5 . 10 Max Kills in Single Turn 4 | 1 2 3 2 2 3 1 . 4 Gunslinging . | . . . . . . . . . Exploded 4 | . 2 3 1 2 3 . . 4 Melee 1 | . . . 1 . . . . . Uniques/NPCs Destroyed . | . . . . . . . . . Combat | -11 -10 -10 -9 -9 -8 -8 -8 -8 -------- Run | Yrd Mat Min Mat Min Mat Sto Rec Scr Hostile Shots Fired 485 | . 23 8 161 12 40 42 . 199 Missed 113 | . 6 2 34 2 7 13 . 49 Hits 372 | . 17 6 127 10 33 29 . 150 Melee 15 | . . . 15 . . . . . Projectile 357 | . 17 6 112 10 33 29 . 150 Critical Strikes 20 | . . . 7 1 2 . . 10 Damage Taken 5808 | . 176 44 1886 202 810 424 . 2266 Core 782 | . 32 . 190 . 111 28 . 421 Absorbed by Shields . | . . . . . . . . . Regen/Repaired (Parts) 229 | . . . 129 . . 100 . . Core Remaining (%) 79 | 100 . 87 . 52 . . . . Volleys Fired 347 | 9 19 5 120 18 37 41 . 98 Largest 2 | 2 2 2 2 2 2 2 . 2 Hottest 136 | 80 40 100 136 120 120 46 . 108 Shots Fired 641 | 18 30 8 232 30 73 82 . 168 Gun 459 | 18 22 6 179 . 20 82 . 132 Cannon 125 | . . . 49 19 52 . . 5 Launcher 55 | . 8 1 4 11 1 . . 30 Special 2 | . . 1 . . . . . 1 Kinetic 441 | . 22 6 179 . 20 82 . 132 Thermal 126 | . . 1 49 19 52 . . 5 Explosive 55 | . 8 1 4 11 1 . . 30 Electromagnetic 18 | 18 . . . . . . . . Robot Hit Streak 29 | 6 5 3 14 8 29 23 . 7 Robot Miss Streak 4 | 1 2 3 3 2 1 2 . 4 Penetration Max 1 | . . . . . . . . 1 Secondary Targets 5 | . . . 3 . . . . 2 Max Gunslinging Chain 1 | . . . 1 . . . . 1 Shots Hit Robots 410 | 12 13 4 161 14 61 61 . 84 Core Hits 247 | 5 20 5 60 28 24 29 1 75 Critical Kills 2 | . . . 1 . . 1 . . Critical Parts Destroyed 6 | . 1 . 3 . . 1 . 1 Critical Strikes 8 | . 1 . 4 . . 2 . 1 Destroy 7 | . 1 . 3 . . 2 . 1 Smash 1 | . . . 1 . . . . . Melee Attacks 14 | . . . 11 . . 3 . . Impact 14 | . . . 11 . . 3 . . Slashing . | . . . . . . . . . Piercing . | . . . . . . . . . Sneak Attacks 1 | . . . 1 . . . . . Combat Hostiles . | . . . . . . . . . Follow-up Attacks . | . . . . . . . . . Damage Inflicted 10821 | 238 816 210 2927 1063 1416 942 13 3196 Guns 5031 | 151 157 56 1879 . 237 942 . 1609 Cannons 1999 | . . . 698 302 999 . . . Explosions 3508 | 74 655 131 198 725 138 . . 1587 Melee 90 | . . . 90 . . . . . Ramming 193 | 13 4 23 62 36 42 . 13 . Kinetic 4880 | . 157 56 1879 . 237 942 . 1609 Thermal 2073 | 74 . . 698 302 999 . . . Explosive 3434 | . 655 131 198 725 138 . . 1587 Electromagnetic 151 | 151 . . . . . . . . Impact 90 | . . . 90 . . . . . Slashing . | . . . . . . . . . Piercing . | . . . . . . . . . Highest Corruption 11 | . . . 11 11 . . . 2 Average Corruption 8 | . . . 9 11 . . . 1 Corruption Purged . | . . . . . . . . . Corruption Blocked . | . . . . . . . . . Effects 131 | . . . 56 66 . . . 9 Message Errors 31 | . . . 7 21 . . . 3 Matter Fused 36 | . . . 13 20 . . . 3 Heat Flow Errors 14 | . . . 6 7 . . . 1 Energy Discharges 13 | . . . 9 4 . . . . Parts Rejected 1 | . . . . 1 . . . . Data Loss (minor) 17 | . . . 9 6 . . . 2 Data Loss (major) 5 | . . . 4 1 . . . . Misfires 7 | . . . 3 4 . . . . Alerts 2 | . . . 1 1 . . . . Weapon Failures 5 | . . . 4 1 . . . . Overload Shots . | . . . . . . . . . Overflow Damage 197 | 12 16 . 100 10 52 . . 7 Projectiles 21 | . . . . 5 16 . . . Explosions 84 | 12 16 . 10 3 36 . . 7 Melee 92 | . . . 90 2 . . . . Knockbacks 3 | . 1 . 2 . . . . . Impact 3 | . 1 . 2 . . . . . Kinetic . | . . . . . . . . . Secondary . | . . . . . . . . . Self-Inflicted Damage 166 | . . . 32 67 37 . . 30 Shots 5 | . . . 1 2 1 . . 1 Rammed 22 | 3 1 4 7 2 3 1 1 . Targets Rammed 25 | 3 1 4 9 2 4 1 1 . Kicked . | . . . . . . . . . Crushed 3 | . . . 2 . 1 . . . Highest Temperature 332 | 54 6 20 332 251 216 213 . 332 Average Temperature 73 | 20 3 10 68 79 42 63 . 90 Received Heat Transfer 2035 | . 48 . 657 72 144 162 . 952 Effects 7 | . . . 3 . . 1 . 3 Shutdowns 2 | . . . 1 . . . . 1 Energy Bleed 2 | . . . . . . 1 . 1 Interference 2 | . . . 2 . . . . . Damage (minor) 1 | . . . . . . . . 1 Siege Activations . | . . . . . . . . . Martial Activations . | . . . . . . . . . Shielding Activations . | . . . . . . . . . Robots Disrupted . | . . . . . . . . . Combat Hostiles . | . . . . . . . . . Robots Corrupted 2 | . . . 1 1 . . . . Combat Hostiles . | . . . . . . . . . Parts Fried 6 | 2 . . 2 2 . . . . Impact Corruptions 5 | . . . 4 1 . . . . Robots Melted . | . . . . . . . . . Combat Hostiles . | . . . . . . . . . Parts Melted 17 | . . . 3 2 2 . . 10 Heat Transferred 3356 | 100 . . 1184 481 1591 . . . Parts Sabotaged . | . . . . . . . . . Parts Stolen . | . . . . . . . . . Parts Stripped . | . . . . . . . . . Power Chain Reactions 2 | 2 . . . . . . . . Alert | -11 -10 -10 -9 -9 -8 -8 -8 -8 ------- Run | Yrd Mat Min Mat Min Mat Sto Rec Scr Maximum Alert Level 1 | . . . 1 . . . . . Low Security (%) 83 | 100 100 100 34 100 100 100 100 . Level 1 16 | . . . 65 . . . . . Level 2 . | . . . . . . . . . Level 3 . | . . . . . . . . . Level 4 . | . . . . . . . . . Level 5 . | . . . . . . . . . High Security . | . . . . . . . . . Max Security . | . . . . . . . . . Peak Influence 392 | 5 197 93 392 148 134 180 60 . Initial 148 | . . 16 . 148 . 1 60 . Average 90 | . 98 17 232 18 70 128 6 . Influence Increases 2458 | 25 263 152 999 133 375 402 109 . Destroy 0b10 Robot/C 1380 | . 160 120 600 40 240 220 . . Destroy 0b10 Robot/NC 165 | 25 15 . 70 15 25 15 . . Destroy Leader 380 | . 32 20 172 10 62 84 . . Allied During Kill 4 | . . 4 . . . . . . Successful Hack 66 | . 6 . 28 . 6 7 19 . Select Force Hacks 120 | . . . 30 . . . 90 . Disable Machine 60 | . 15 . 15 . 15 15 . . Destroy Structure 163 | . 35 8 39 68 12 1 . . Partial Spotted 15 | . . . 15 . . . . . Lose Combat Pursuer 105 | . . . 30 . 15 60 . . Influence Decreases 2458 | 25 220 195 616 516 370 251 265 . Entered New Map 362 | . . 27 . 235 . 4 96 . Time Decay 1975 | 25 220 168 556 260 330 247 169 . Lost Part 101 | . . . 60 1 40 . . . Lost Ally 20 | . . . . 20 . . . . Squads Dispatched 10 | . 3 . 4 . 1 2 . . Investigation 4 | . 2 . 1 . . 1 . . Extermination . | . . . . . . . . . Reinforcement 5 | . 1 . 3 . 1 . . . Assault . | . . . . . . . . . Garrison 1 | . . . . . . 1 . . Intercept . | . . . . . . . . . Searches Triggered . | . . . . . . . . . Construction Impeded 1 | . . . 1 . . . . . Haulers Reinforced . | . . . . . . . . . Active Scanning Responses . | . . . . . . . . . Cargo Convoy Interrupts . | . . . . . . . . . Stealth | -11 -10 -10 -9 -9 -8 -8 -8 -8 --------- Run | Yrd Mat Min Mat Min Mat Sto Rec Scr Distress Signals 6 | . . . 2 . 1 3 . . Communications Jammed 22 | . . . . . 22 . . . Distress Signals 17 | . . . . . 17 . . . Times Spotted 174 | . 10 5 49 13 19 14 . 64 Peak Tracking Total 7 | . 4 3 4 3 3 6 . 7 Tactical Retreats 5 | . . . 1 . 1 2 . 1 Traps | -11 -10 -10 -9 -9 -8 -8 -8 -8 ------- Run | Yrd Mat Min Mat Min Mat Sto Rec Scr Traps Triggered 2 | . 2 . . . . . . . Indirectly . | . . . . . . . . . Trap Hack Attempts . | . . . . . . . . . Triggered . | . . . . . . . . . Disarmed . | . . . . . . . . . Reprogrammed . | . . . . . . . . . Reused . | . . . . . . . . . Traps Extracted . | . . . . . . . . . Installed . | . . . . . . . . . Triggered . | . . . . . . . . . Machines | -11 -10 -10 -9 -9 -8 -8 -8 -8 ---------- Run | Yrd Mat Min Mat Min Mat Sto Rec Scr Machines Disabled 16 | . 1 . 1 . 1 1 . 12 Max in Single Turn 2 | . 1 . 1 . 1 1 . 2 Garrison Access 1 | . . . . . 1 . . . Machines Repaired . | . . . . . . . . . Machines Dismantled . | . . . . . . . . . Machines Sabotaged . | . . . . . . . . . Overloaded Fab Kills . | . . . . . . . . . Hacking | -11 -10 -10 -9 -9 -8 -8 -8 -8 --------- Run | Yrd Mat Min Mat Min Mat Sto Rec Scr Machines Accessed 32 | . 2 . 12 . 5 3 8 2 Terminals 20 | . 2 . 8 . 4 1 5 . Fabricators . | . . . . . . . . . Repair Stations 2 | . . . 1 . . 1 . . Recycling Units 4 | . . . 1 . . . 3 . Scanalyzers 2 | . . . 2 . . . . . Garrison Access 2 | . . . . . 1 1 . . Total Hacks 94 | . 5 . 37 . 11 8 20 13 Successful 54 | . 1 . 21 . 4 3 12 13 Failed 40 | . 4 . 16 . 7 5 8 . Catastrophic 7 | . . . 4 . 1 1 1 . Database Lockouts . | . . . . . . . . . Manual 60 | . 5 . 26 . 7 1 21 . Terminals 60 | . 5 . 26 . 10 2 17 . Fabricators . | . . . . . . . . . Repair Stations 7 | . . . 4 . . 3 . . Recycling Units 4 | . . . 1 . . . 3 . Scanalyzers 6 | . . . 6 . . . . . Garrison Access 4 | . . . . . 1 3 . . Terminal Hacks 21 | . 1 . 3 . 1 1 2 13 Record 5 | . . . . . . . . 5 Robot Analysis 10 | . 1 . 1 . . . . 8 Open Door 1 | . . . . . . 1 . . Terminal Index 2 | . . . 1 . . . 1 . Recycling Unit Index 1 | . . . . . . . 1 . Locate Traps 1 | . . . 1 . . . . . Hauler Manifests 1 | . . . . . 1 . . . Fabricator Hacks . | . . . . . . . . . Repair Station Hacks 4 | . . . 2 . . 2 . . Scan Component 2 | . . . 1 . . 1 . . Repair 2 | . . . 1 . . 1 . . Recycling Unit Hacks . | . . . . . . . . . Scanalyzer 6 | . . . 6 . . . . . Retrieve Study 6 | . . . 6 . . . . . Garrison Access Hacks 1 | . . . . . 1 . . . Seal Access 1 | . . . . . 1 . . . Unauthorized Hacks 22 | . . . 10 . 2 . 10 . Terminals 18 | . . . 9 . 2 . 7 . Assimilate 1 | . . . 1 . . . . . Botnet 5 | . . . 2 . 1 . 2 . Operators 2 | . . . 1 . 1 . . . Skim 10 | . . . 5 . . . 5 . Fabricators . | . . . . . . . . . Repair Stations . | . . . . . . . . . Recycling Units 4 | . . . 1 . . . 3 . Tunnel 4 | . . . 1 . . . 3 . Scanalyzers . | . . . . . . . . . Garrison Access . | . . . . . . . . . Data Cores Recovered 1 | . . . 1 . . . . . Used . | . . . . . . . . . Hacking Detections 24 | . 2 . 10 . 4 3 5 . Full Trace Events 1 | . . . . . . 1 . . Feedback Events . | . . . . . . . . . Feedback Blocked . | . . . . . . . . . Robot Schematics Acquired . | . . . . . . . . . Robots Built . | . . . . . . . . . Authchips . | . . . . . . . . . Time . | . . . . . . . . . Total Robot Build Rating . | . . . . . . . . . Part Schematics Acquired . | . . . . . . . . . Parts Built . | . . . . . . . . . Authchips . | . . . . . . . . . Time . | . . . . . . . . . Total Part Build Rating . | . . . . . . . . . Part Studies Acquired 6 | . . . 6 . . . . . Parts Repaired 2 | . . . 1 . . 1 . . Time 58 | . . . 26 . . 32 . . Parts Recycled . | . . . . . . . . . Recycled Matter . | . . . . . . . . . Retrieved Matter . | . . . . . . . . . Retrieved Components . | . . . . . . . . . Parts Scanalyzed . | . . . . . . . . . Part Schematics Acquired . | . . . . . . . . . Parts Damaged . | . . . . . . . . . Bothacking | -11 -10 -10 -9 -9 -8 -8 -8 -8 ------------ Run | Yrd Mat Min Mat Min Mat Sto Rec Scr Used RIF Installer . | . . . . . . . . . Robots Hacked . | . . . . . . . . . Non-combat . | . . . . . . . . . Combat . | . . . . . . . . . Robot Hacks Applied . | . . . . . . . . . Relay Couplers Released . | . . . . . . . . . Fabnet Peak Effective % . | . . . . . . . . . Robots Rewired . | . . . . . . . . . Allies Hacked . | . . . . . . . . . Hacks Repelled . | . . . . . . . . . Allies | -11 -10 -10 -9 -9 -8 -8 -8 -8 -------- Run | Yrd Mat Min Mat Min Mat Sto Rec Scr Total Allies 3 | . . 1 . 2 . . . . Largest Group 2 | . . 1 . 2 . . . . Highest-Rated Group 40 | . . 31 . 40 . . . . Highest-Rated Ally 31 | . . 31 . 31 . . . . Total Orders . | . . . . . . . . . Ally Attacks 25 | . . 6 . 19 . . . . Total Damage 275 | . . 42 . 233 . . . . Kills 6 | . . 2 . 4 . . . . Allies Corrupted . | . . . . . . . . . Allies Melted 9 | . . . . . . . . 9 Intel | -11 -10 -10 -9 -9 -8 -8 -8 -8 ------- Run | Yrd Mat Min Mat Min Mat Sto Rec Scr Active Infowar (turns) 5114 | 24 565 892 1200 1649 439 345 . . Sensors 1 | . . . . . 1 . . . Seismic 5020 | 24 565 892 1200 1649 345 345 . . Jamming 95 | . . . . . 95 . . . Robot Analysis Total 10 | . 1 . 1 . . . . 8 Derelict Logs Recovered 3 | . . 1 . 2 . . . . Drone Launches . | . . . . . . . . . Drone Recoveries . | . . . . . . . . . Exploration | -11 -10 -10 -9 -9 -8 -8 -8 -8 ------------- Run | Yrd Mat Min Mat Min Mat Sto Rec Scr Turns Passed 13928 | 215 598 892 2156 1901 877 560 1082 5647 Spaces Moved 5844 | 107 320 538 889 843 296 154 471 2226 Core 4 | 4 . . . . . . . . Treads 5313 | 103 320 538 889 843 296 154 471 1699 Legs . | . . . . . . . . . Wheels 527 | . . . . . . . . 527 Hover . | . . . . . . . . . Flight . | . . . . . . . . . Fastest Speed 50 | 50 160 160 160 200 200 225 225 145 Average Speed 200 | 155 160 160 172 200 210 225 229 220 Slowest Speed 245 | 160 160 160 200 200 225 225 235 245 Overloaded Moves . | . . . . . . . . . Propulsion Burnouts . | . . . . . . . . . Robots Hopped . | . . . . . . . . . Potential Cave-ins 1 | . . . . . . . . 1 Cave-ins Triggered . | . . . . . . . . . Exploration Rate (%) 63 | 6 65 98 76 100 26 32 84 87 Regions Visited 8 Branch Regions 5 Pre-discovered Areas 13 | . . . 4 2 . . 7 . Known Exits Taken 4 | . . . 1 1 1 . 1 . Unknown Exits Taken 4 | 1 1 1 . . . 1 . . Scrap Searched 11 | . . 3 . 1 . . . 7 Spaces Dug 93 | . . 8 22 34 . . . 29 Terrain Destroyed 353 | 9 42 8 35 99 11 . . 149 Melee 10 | . . . 10 . . . . . Projectile 61 | . . 1 1 . 2 . . 57 AOE 273 | 9 42 7 24 99 9 . . 83 Terrain Rammed . | . . . . . . . . . Walls Destroyed . | . . . . . . . . . Machines Disabled . | . . . . . . . . . Actions | -11 -10 -10 -9 -9 -8 -8 -8 -8 --------- Run | Yrd Mat Min Mat Min Mat Sto Rec Scr Total 7382 | 132 373 555 1248 1028 476 299 473 2798 Wait 840 | 3 9 2 120 149 95 77 . 385 Move 5836 | 106 319 537 888 842 295 153 470 2226 Hop . | . . . . . . . . . Pick Up 72 | 4 6 3 23 4 9 5 . 18 Fast Attach 31 | 7 2 . 7 2 2 . 1 10 Attach 27 | . 2 . 10 . 7 . . 8 Detach 10 | . 3 . 4 . 2 . . 1 Swap 112 | . 9 4 35 7 16 11 . 30 Drop 68 | . 3 . 21 4 9 8 1 22 Fire 347 | 9 19 5 120 18 37 41 . 98 Melee 14 | . . . 11 . . 3 . . Ram . | . . . . . . . . . Kick . | . . . . . . . . . Crush 25 | 3 1 4 9 2 4 1 1 . Escape Stasis . | . . . . . . . . . Rewire . | . . . . . . . . . Trap . | . . . . . . . . . Miscellaneous . | . . . . . . . . . Route ------- -11/Scrapyard -10/Materials (discovered 2 exits: *Mat / [*Min]) -10/Mines (discovered 2 exits: *Mat x2) -9/Materials (discovered 5 exits: *Mat x3 / *Min x2) -9/Mines (discovered 2 exits: *Mat x2) -8/Materials (discovered 3 exits: *Fac x2 / *Sto) -8/Storage -8/Recycling (discovered 2 exits: *Fac / *Scr) -8/Scraptown (discovered 2 exits: *Fac x2) History --------- Turn | Location | Event 2 | -11/Scrapyard | Discovered new exit (range 16) 216 | -11/Scrapyard | Entered Materials 365 | -10/Materials | Build established: Mutant 524 | -10/Materials | Discovered new exit (range 8) 800 | -10/Materials | Discovered new exit (range 7) 814 | -10/Materials | Entered Mines 907 | -10/Mines | Discovered new exit (range 7) 916 | -10/Mines | Met a Derelict bent on vengeance 1008 | -10/Mines | Received a Mining Laser from a helpful Derelict 1260 | -10/Mines | Discovered new exit (range 14) 1276 | -10/Mines | Found a damaged Exp. Sensor Array with a note attached 1279 | -10/Mines | Found Prototype Device 1549 | -10/Mines | Deemed a non-threat by the Exiles lab entrance 1706 | -10/Mines | Entered Materials 1706 | -9/Materials | Evolved 2 slots: Propulsion x1, Utility x1 2266 | -9/Materials | Discovered new exit (range 13) 2523 | -9/Materials | Discovered new exit (range 5) 2671 | -9/Materials | Lost 3 parts (1n1u1w) 2721 | -9/Materials | Discovered new exit (range 16) 2751 | -9/Materials | System corruption reached 10% 2790 | -9/Materials | Build established: Scavenger-Mutant 2938 | -9/Materials | Repaired Lgt. Treads+ 3242 | -9/Materials | Discovered new exit (range 12) 3499 | -9/Materials | Identified exit to Mines 3566 | -9/Materials | Learned 2 Materials zone layouts 3570 | -9/Materials | Identified exit to Materials 3571 | -9/Materials | Learned location of Zion (-6) 3572 | -9/Materials | Learned 4 Recycling zone layouts 3575 | -9/Materials | Learned location of Storage (-8) 3585 | -9/Materials | Learned location of 2 exits from Materials 3862 | -9/Materials | Entered Mines 3872 | -9/Mines | Joined a pair of Derelicts in attacking an 0b10 outpost 4139 | -9/Mines | Assembled infested the area 4144 | -9/Mines | Assisted by a Guerilla fighting off Assembled 4795 | -9/Mines | Discovered exit to Materials (range 10) 5195 | -9/Mines | Learned Materials emergency access door positions 5237 | -9/Mines | Discovered exit to Materials (range 11) 5763 | -9/Mines | Entered Materials 5763 | -8/Materials | Evolved 2 slots: Propulsion x1, Utility x1 5764 | -8/Materials | Identified exit to Storage 5764 | -8/Materials | Identified Exp. Sensor Array 5765 | -8/Materials | Identified exit to Factory 6640 | -8/Materials | Entered Storage 7048 | -8/Storage | Repaired Autogun+ 7129 | -8/Storage | Garrison activated, responded to threat 7191 | -8/Storage | Used back door to open Recycling access 7191 | -8/Storage | Discovered new exit (range 5) 7200 | -8/Storage | Entered Recycling 7201 | -8/Recycling | Identified exit to Factory 7993 | -8/Recycling | Identified exit to Scraptown 8023 | -8/Recycling | Learned 4 Factory zone layouts 8052 | -8/Recycling | Learned location of 1 exit from Storage 8066 | -8/Recycling | Learned location of 1 exit from Storage 8086 | -8/Recycling | Learned 4 Recycling zone layouts 8216 | -8/Recycling | Scanned before Scraplab entrance 8254 | -8/Recycling | Entered Scraplab 8282 | -8/Recycling | Entered Scraptown 8865 | -8/Scraptown | Discovered exit to Factory (range 13) 9053 | -8/Scraptown | Visited Bundlers 9405 | -8/Scraptown | Visited IN-MT5's Study 9440 | -8/Scraptown | Visited UFD Registry 9440 | -8/Scraptown | Registered with UFD as "Novaslicer" 9525 | -8/Scraptown | Visited LU-1G1's Boring Crew 9619 | -8/Scraptown | Visited A0-MCA Data Center 9763 | -8/Scraptown | Received an X-ray algorithm 9789 | -8/Scraptown | Visited Abandonware Association 9808 | -8/Scraptown | Learned abandonware demo "OVRCLOCK.EXE" 9817 | -8/Scraptown | Learned abandonware demo "ERRANTS.EXE" 9817 | -8/Scraptown | Learned abandonware demo "REBOOT5.EXE" 9869 | -8/Scraptown | Visited Supply Room 9904 | -8/Scraptown | Visited Junk Repository 9970 | -8/Scraptown | Visited Research Penetration Think Tank 10034 | -8/Scraptown | Visited Analyses Database 10088 | -8/Scraptown | Visited Chapter 10 10238 | -8/Scraptown | Visited Curators Association 10624 | -8/Scraptown | Visited TADAMA 12159 | -8/Scraptown | Visited Symbiants 12420 | -8/Scraptown | Met Optimus 12420 | -8/Scraptown | Accepted into 0bPrime 12499 | -8/Scraptown | Given a B+ rating by A0-MCA 12502 | -8/Scraptown | Found A0-MCA's Component Scanner 12820 | -8/Scraptown | Civil war broke out across Scraptown 12820 | -8/Scraptown | Attached CPS modules to A0-MCA. 12833 | -8/Scraptown | Found Prototype Processor 12906 | -8/Scraptown | Lost 3 allies 12908 | -8/Scraptown | Optimus destroyed in the chaos of civil war 12972 | -8/Scraptown | Lost 5 allies 13031 | -8/Scraptown | Found Prototype Special Weapon 13042 | -8/Scraptown | Identified LU-1G1's Laser Shovel 13165 | -8/Scraptown | Core integrity fell below 50% 13180 | -8/Scraptown | Lost 16 allies 13202 | -8/Scraptown | Destroyed 8 combat bots 13211 | -8/Scraptown | Lost 4 parts (1n3u) 13318 | -8/Scraptown | Lost 3 parts (1n1u1w) 13505 | -8/Scraptown | Found PL-3XN's Ring of Power 13784 | -8/Scraptown | Lost 8 allies 13890 | -8/Scraptown | Core integrity fell below 20% 13908 | -8/Scraptown | Lost 4 allies 13929 | -8/Scraptown | Destroyed by N1-IVF(j) with Overtuned Pulse Rifle Last Messages --------------- 13895_ Rnf. Deuterium Engine destroyed. 13898_ Lgt. Treads+ destroyed. 13898_ Critical hit (Burn: +37). 13901_ The unstable cave ceiling collapses. 13903_ Slug penetrates 0K-UC7(j). 13903_ Mak. Salvage Targeting Computer melted. 13903_ 0K-UC7(j) destroyed. 13905_ Slug penetrates XC-PJJ(j). 13905_ XC-PJJ(j) destroyed. 13907_ Acquired 46 matter. 13915_ Slug penetrates PU-2FK(j). 13919_ The unstable cave ceiling collapses. 13923_ Med. Treads destroyed. 13923_ PU-2FK(j) destroyed. 13924_ The unstable cave ceiling collapses. 13925_ Slug penetrates CE-KKQ(j). 13925_ CE-KKQ(j) destroyed. 13927_ Wheel destroyed. 13927_ Slug penetrates N1-IVF(j). 13929_ UC-WGL(j) destroyed. Map ----- +----------------------------------------------------+ | ?????????# ??# #??? | | ????? ??# ??# #??? | | ?????? ## ?# ################# #??? | | ???????? ?# #?""""""""??????# %![%*!=!#??? | | ?????????# # # """""""#?????# =*%!!%!%#??? | | ?????????# # # ""#?????#[*[%!=!=*#??? | | ?????????# ""#?????#!!=![[ #??? | | ?????????# # # """#?????#%==%*%! #??? | | ?????????#"X" # # X"#?????#![*=! != ###? | | ?????????####?# #? ""#?????# = =%* ""#" | | ############### #? """#?????# [! !"""" | | ]!#""" """ # #?? ""#?????# =*!=""## | | ! #"%" "%" # %=#=? ""??????# !!=%###? | | * # [ ! ! # =[!!#%!?""""""??????# ! *!!#### | | ] ! # *=!%*=%="?""""""??#####%! =%! %%%=%! | | !! # #!!!!!j[!#?###???# # #= [=[%=!!!=* | | ## ## #*=%=!!* #???### # =!=*=[=% = | | "" #=!%[%= #### !=%!!%! %= % | | "%[ #==[ !! [###==## = [%[!=%=&! ![ | | ""= ! #!%!=*% ! %!= ! !%=[[!=!%[ !=! | | ![*% #![ = [!=[ ==! %!=!%!%%=%! %[= | | " "%!" #%[! ! %= !=! % %=/=*!=%!**=!=% | | "" "" """" " #== = %=! %%*%!!*[%=[%[!%!===%% | | ###############[ ! = [*= =% %=![[=%=!=&!=%*%=[%** | | ????????# !! ===%= =%!==!*[ =%*%!!!!*[%*!!![=%!!# | | ???????# [%*%=*=[ != !@[ [===[!!*=*====%/[/=!%# | | ######### !==[!!%= !=% =!%==[![%!%*%!%[!![!%%!==%# | | #!!#%#;# !!!*! [;#=#=#;##"!==%[*#### | | #??#=%=[%=!%=!%!###%=%[[=!!!#!#=%%=### | | "" """### #??#!! %!=!!===!#?#!!*!!!== ###![[##?? | | "" "#?# ?????#="!!%![=[%*"#?#%!%%!=! #?!%%*#??? | | "" "#?#??????#"["!!!!*%!="#?#!%[=[*= #?#%*%#??? | | "" "#????????#"%==%=%=[!""#?#!*""""" #?#!![#??? | | " "#????????#"[[[[[""= ""#?#=!""""" #?#%!!#??? | | " "#????????#"[!=!"""! "#?#[%""""" #?#!=!#??? | | """"""#?????#??#!%!%=!! "??#!![ #?#!!!#??? | | #######???? #??#!**!"""" "???#= #?#=%[#??? | | #####?????? #???"#+#??###""???###########?#*!!#??? | | #"""#????? #????????????""???????????????# #??? | | #" "#????? #????????????????????????###### #??? | | # #???? #??????????????????????"""""""" #??? | | # ##### #?????????????????????""" """"" #??? | | # ##????????????##????"""" " "" #??? | | # #???????????? ? #??? | | # ##????##???### ##???"" "" "" " #??? | | ##### ### ##????"""??#""" "#?????""""""""" #??? | | ????# #????????"" ""?#""" "#????????"""""" #??? | | ##### ######???"" "?#""" "#????????###### #??? | | """"" """""#??#" ""##"" "#?############# #??? | | """ " " "#??#"" ""##"" "#?#"""""""""""# #??? | +----------------------------------------------------+ Best States ------------- Heat Dissipation 45 Energy Generation 16 Energy Capacity 290 Matter Stores 300 Matter Capacity 300 Sight Range 16 Terrain Scan Density 10 Jamming Range 12 Armor Coverage 450 Weapon Cycling 25 Evasion (%) 40 Targeting Accuracy 8 Core Analysis 6 Recoil Reduction 4 Item Schematics ----------------- None Robot Schematics ------------------ None Fabricated ------------ Nothing Repaired ---------- Lgt. Treads | 7% | -9/Materials Autogun | 13% | -8/Storage Studied --------- Hvy. Assault Rifle | -9/Materials | Hacked Lgt. Treads | -9/Materials | Hacked Mni. Grenade Launcher | -9/Materials | Hacked Autogun | -9/Materials | Hacked Hvy. Hammer | -9/Materials | Hacked Com. Wheel | -9/Materials | Hacked Alien Tech Used ----------------- None Achievements -------------- My Bad Challenges ------------ None Game ------ Seed ThrowingTractorSplitter Manual? 0 Play Time 01:05:37 Cumulative 905.3 hours Start 2025.11.18 @ 18:45:00 End 2025.11.18 @ 19:58:53 Sessions 1 Manual Loads 0 Difficulty Rogue Special Mode None Game No. 817 Rogue 730 Adventurer 87 Explorer 0 Win Type - Total 59 Types 9/6/31/2/1/1/5/1/1/2 Lore% 97 Gallery% 93 Achievement% 68 Wizard Run 0 Options --------- Layout 0 ASCII 0 Keyboard 1 Movement Numpad Keybinds 0 Fullscreen 2 Font 18/SmallcapsGlow Map View 76x50 Zoom Use 0% Tactical HUD 1 Map Filters NONE Filters NONE Steam 1 RUN: 4093db88-4213-4d24-a6e3-9d1bb71c9832